fUSD/lending_fUSD_20250512
["ID","MTS","AMOUNT","RATE_DAILY","PERIOD"]
[360833629,1747057834430,-400.0,0.00013698,2]
[360833631,1747057834440,-400.0,0.00013698,2]
[360833633,1747057834449,-400.0,0.00013698,2]
[360833635,1747057834459,-400.0,0.00013698,2]
[360833637,1747057834469,-400.0,0.00013698,2]
[360833639,1747057834479,-400.0,0.00013698,2]
[360833641,1747057834489,-400.0,0.00013698,2]
[360833643,1747057834498,-400.0,0.00013698,2]
[360833645,1747057834508,-400.0,0.00013698,2]
[360833647,1747057834517,-400.0,0.00013698,2]
[360833649,1747057834527,-400.0,0.00013698,2]
[360833651,1747057834536,-400.0,0.00013698,2]
[360833653,1747057834546,-400.0,0.00013698,2]
[360833655,1747057834555,-400.0,0.00013698,2]
[360833657,1747057834564,-400.0,0.00013698,2]
[360833659,1747057834574,-400.0,0.00013698,2]
[360833661,1747057834584,-547.42,0.00013698,2]
[360833663,1747057834593,-547.42,0.00013698,2]
[360833665,1747057834602,-407.08,0.00013698,2]
[360833667,1747057834611,-407.08,0.00013698,2]
[360833669,1747057834620,-400.0,0.00013698,2]
[360833671,1747057834629,-400.0,0.00013698,2]
[360833673,1747057834639,-400.0,0.00013698,2]
[360833675,1747057834648,-400.0,0.00013698,2]
[360833677,1747057834658,-400.0,0.00013698,2]
[360833679,1747057834667,-400.0,0.00013698,2]
[360833681,1747057834676,-400.0,0.00013698,2]
[360833683,1747057834685,-400.0,0.00013698,2]
[360833685,1747057834694,-559.25,0.00013698,2]
[360833687,1747057834703,-559.25,0.00013698,2]
[360833689,1747057834713,-450.39192626,0.00013698,2]
[360833691,1747057834722,-400.0,0.00013698,2]
[360833693,1747057834734,-400.0,0.00013698,2]
[360833695,1747057834743,-400.0,0.00013698,2]
[360833697,1747057834753,-400.0,0.00013698,2]
[360833699,1747057834762,-400.0,0.00013698,2]
[360833701,1747057834771,-932.32,0.00013698,2]
[360833703,1747057834781,-932.32,0.00013698,2]
[360833705,1747057834790,-400.0,0.00013698,2]
[360833707,1747057834800,-400.0,0.00013698,2]
[360833709,1747057834809,-106738.07,0.00013698,2]
[360833711,1747057834818,-103075.3422053,0.00013698,2]
[360833714,1747057834836,-3662.7277947,0.00013698,2]
[360833716,1747057834845,-402.05,0.00013698,2]
[360833718,1747057834855,-402.05,0.00013698,2]
[360833720,1747057834864,-400.0,0.00013698,2]
[360833722,1747057834874,-400.0,0.00013698,2]
[360833724,1747057834882,-400.0,0.00013698,2]
[360833726,1747057834891,-400.0,0.00013698,2]
[360833728,1747057834901,-400.0,0.00013698,2]
[360833730,1747057834910,-400.0,0.00013698,2]
[360833732,1747057834919,-400.0,0.00013698,2]
[360833734,1747057834928,-400.0,0.00013698,2]
[360833736,1747057834937,-400.0,0.00013698,2]
[360833738,1747057834946,-400.0,0.00013698,2]
[360833740,1747057834955,-400.0,0.00013698,2]
[360833742,1747057834964,-400.0,0.00013698,2]
[360833744,1747057834973,-400.0,0.00013698,2]
[360833747,1747057834983,-400.0,0.00013698,2]
[360833749,1747057834992,-400.0,0.00013698,2]
[360833750,1747057835001,-400.0,0.00013698,2]
[360833752,1747057835010,-1039.59,0.00013698,2]
[360833754,1747057835019,-1039.59,0.00013698,2]
[360833756,1747057835029,-400.0,0.00013698,2]
[360833758,1747057835042,-400.0,0.00013698,2]
[360833761,1747057835052,-400.0,0.00013698,2]
[360833763,1747057835062,-400.0,0.00013698,2]
[360833765,1747057835072,-452.05,0.00013698,2]
[360833767,1747057835083,-452.05,0.00013698,2]
[360833769,1747057835092,-356.1649995,0.00013698,2]
[360833771,1747057835101,-400.0,0.00013698,2]
[360833772,1747057835112,-400.0,0.00013698,2]
[360833773,1747057835121,-2608.73,0.00013698,2]
[360833774,1747057835131,-2608.73,0.00013698,2]
[360833775,1747057835140,-400.0,0.00013698,2]
[360833776,1747057835149,-400.0,0.00013698,2]
[360833777,1747057835158,-492.31958922,0.00013698,2]
[360833778,1747057835167,-527.61,0.00013698,2]
[360833779,1747057835176,-527.61,0.00013698,2]
[360833780,1747057835185,-843.57,0.00013698,2]
[360833781,1747057835194,-843.57,0.00013698,2]
[360833782,1747057835204,-400.0,0.00013698,2]
[360833783,1747057835213,-400.0,0.00013698,2]
[360833784,1747057835222,-400.0,0.00013698,2]
[360833785,1747057835233,-400.0,0.00013698,2]
[360833786,1747057835242,-400.0,0.00013698,2]
[360833787,1747057835252,-400.0,0.00013698,2]
[360833788,1747057835261,-306.07281774,0.00013698,2]
[360833789,1747057835271,-400.0,0.00013698,2]
[360833790,1747057835281,-400.0,0.00013698,2]
[360833791,1747057835290,-400.0,0.00013698,2]
[360833792,1747057835299,-400.0,0.00013698,2]
[360833793,1747057835308,-400.0,0.00013698,2]
[360833794,1747057835317,-400.0,0.00013698,2]
[360833795,1747057835327,-331.12,0.00013698,2]
[360833796,1747057835337,-400.0,0.00013698,2]
[360833797,1747057835346,-400.0,0.00013698,2]
[360833798,1747057835356,-400.0,0.00013698,2]
[360833799,1747057835365,-400.0,0.00013698,2]
[360833800,1747057835374,-900.19,0.00013698,2]
[360833801,1747057835383,-900.19,0.00013698,2]
[360833802,1747057835393,-400.0,0.00013698,2]
[360833803,1747057835402,-400.0,0.00013698,2]
[360833804,1747057835412,-400.0,0.00013698,2]
[360833805,1747057835421,-400.0,0.00013698,2]
[360833806,1747057835431,-400.0,0.00013698,2]
[360833807,1747057835440,-400.0,0.00013698,2]
[360833808,1747057835449,-400.0,0.00013698,2]
[360833809,1747057835459,-400.0,0.00013698,2]
[360833810,1747057835469,-400.0,0.00013698,2]
[360833811,1747057835480,-400.0,0.00013698,2]
[360833812,1747057835489,-400.0,0.00013698,2]
[360833813,1747057835499,-400.0,0.00013698,2]
[360833814,1747057835508,-400.0,0.00013698,2]
[360833815,1747057835517,-400.0,0.00013698,2]
[360833816,1747057835527,-400.0,0.00013698,2]
[360833817,1747057835536,-400.0,0.00013698,2]
[360833818,1747057835545,-1914.81192884,0.00013698,2]
[360833819,1747057835562,-333.36807116,0.00013698,2]
[360833820,1747057835572,-308.18779782,0.00013698,2]
[360833821,1747057835583,-271.414428,0.00013698,2]
[360833822,1747057835595,-295.80682,0.00013698,2]
[360833823,1747057835607,-1372.77095418,0.00013698,2]
[360833824,1747057835616,-2248.18,0.00013698,2]
[360833825,1747057835626,-400.0,0.00013698,2]
[360833826,1747057835635,-400.0,0.00013698,2]
[360833827,1747057835645,-400.0,0.00013698,2]
[360833828,1747057835654,-524.97799727,0.00013698,2]
[360833829,1747057835663,-400.0,0.00013698,2]
[360833830,1747057835673,-434.81808347,0.00013698,2]
[360833831,1747057835682,-1219.05,0.00013698,2]
[360833832,1747057835691,-185.00919142,0.00013698,2]
[360833833,1747057835708,-1034.04080858,0.00013698,2]
[360833834,1747057835717,-246.82732249,0.00013698,2]
[360833835,1747057835742,-415.32026094,0.00013698,2]
[360833836,1747057835757,-518.32839176,0.00013698,2]
[360833837,1747057837487,-38.57402481,0.00013698,2]
[360833838,1747057837496,-400.0,0.00013698,2]
[360833839,1747057837506,-152.64985424,0.00013698,2]
[360833840,1747057837518,-247.35014576,0.00013698,2]
[360833841,1747057837528,-400.0,0.00013698,2]
[360833842,1747057837538,-400.0,0.00013698,2]
[360833843,1747057837547,-400.0,0.00013698,2]
[360833844,1747057837557,-400.0,0.00013698,2]
[360833845,1747057837566,-681.29,0.00013698,2]
[360833846,1747057837576,-681.29,0.00013698,2]
[360833847,1747057837585,-400.0,0.00013698,2]
[360833848,1747057837595,-400.0,0.00013698,2]
[360833849,1747057837605,-400.0,0.00013698,2]
[360833850,1747057837614,-400.0,0.00013698,2]
[360833851,1747057837623,-400.0,0.00013698,2]
[360833852,1747057837633,-162.47,0.00013698,2]
[360833853,1747057837642,-400.0,0.00013698,2]
[360833854,1747057837651,-400.0,0.00013698,2]
[360833855,1747057837659,-4457.19,0.00013698,2]
[360833856,1747057837668,-4457.19,0.00013698,2]
[360833857,1747057837676,-400.0,0.00013698,2]
[360833858,1747057837685,-300.34287151,0.00013698,2]
[360833859,1747057837693,-400.0,0.00013698,2]
[360833860,1747057837702,-400.0,0.00013698,2]
[360833861,1747057837711,-3262.87698273,0.00013698,2]
[360833862,1747057837723,-9864.38301727,0.00013698,2]
[360833863,1747057837735,-13127.26,0.00013698,2]
[360833864,1747057837745,-400.0,0.00013698,2]
[360833865,1747057837755,-400.0,0.00013698,2]
[360833866,1747057837765,-400.0,0.00013698,2]
[360833867,1747057837775,-400.0,0.00013698,2]
[360833868,1747057837785,-1482.74,0.00013698,2]
[360833869,1747057837794,-1482.74,0.00013698,2]
[360833870,1747057837804,-2330.04017917,0.00013698,2]
[360833871,1747057837826,-687.31982083,0.00013698,2]
[360833872,1747057837836,-86.67138425,0.00013698,2]
[360833873,1747057837847,-2232.97516598,0.00013698,2]
[360833874,1747057837859,-697.71344977,0.00013698,2]
[360833875,1747057837868,-400.0,0.00013698,2]
[360833876,1747057837878,-400.0,0.00013698,2]
[360833877,1747057837887,-807.7,0.00013698,2]
[360833878,1747057837896,-807.7,0.00013698,2]
[360833879,1747057837906,-400.0,0.00013698,2]
[360833880,1747057837915,-371.88655023,0.00013698,2]
[360833881,1747057837927,-28.11344977,0.00013698,2]
[360833882,1747057837936,-400.0,0.00013698,2]
[360833883,1747057837946,-400.0,0.00013698,2]
[360833884,1747057837955,-400.0,0.00013698,2]
[360833885,1747057837965,-400.0,0.00013698,2]
[360833886,1747057837975,-2570.11435636,0.00013698,2]
[360833887,1747057837998,-2813.57906416,0.00013698,2]
[360833888,1747057838010,-1486.57953046,0.00013698,2]
[360833889,1747057838026,-824.93485951,0.00013698,2]
[360833890,1747057838043,-953.82884201,0.00013698,2]
[360833893,1747057839658,-9854.64352264,0.00013698,2]
[360833894,1747057839671,-34533.35355189,0.00013698,2]
[360833895,1747057839967,-1028.93609989,0.00013698,2]
[360833896,1747057839980,-682.60523184,0.00013698,2]
[360833897,1747057839992,-1034.355,0.00013698,2]
[360833898,1747057840004,-670.54274968,0.00013698,2]
[360833899,1747057840015,-966.03464003,0.00013698,2]
[360833900,1747057840027,-973.13789925,0.00013698,2]
[360833901,1747057840041,-957.75465228,0.00013698,2]
[360833902,1747057840051,-5535.22799531,0.00013698,2]
[360833903,1747057840063,-3807.53206489,0.00013698,2]
[360833904,1747057840079,-260.5936556,0.00013698,2]
[360833905,1747057840094,-1615.21899,0.00013698,2]
[360833906,1747057840121,-1000.0,0.00013698,2]
[360833907,1747057840133,-6223.95118902,0.00013698,2]
[360833908,1747057840144,-500.0,0.00013698,2]
[360833909,1747057840156,-577.46205938,0.00013698,2]
[360833910,1747057840167,-561.3217648,0.00013698,2]
[360833911,1747057840179,-3502.92483313,0.00013698,2]
[360833912,1747057840190,-867.89771197,0.00013698,2]
[360833913,1747057840202,-34898.2697359,0.00013698,2]
[360833914,1747057840211,-402.34,0.00013698,2]
[360833915,1747057840221,-402.34,0.00013698,2]
[360833916,1747057840232,-332.4,0.00013698,2]
[360833917,1747057840241,-1732.19,0.00013698,2]
[360833918,1747057840250,-1732.19,0.00013698,2]
[360833919,1747057840260,-890.24686878,0.00013698,2]
[360833920,1747057840272,-841.94313122,0.00013698,2]
[360833921,1747057840281,-9233.63582674,0.00013698,2]
[360833922,1747057840292,-494.99999995,0.00013698,2]
[360833923,1747057840303,-654.839996,0.00013698,2]
[360833924,1747057840315,-1010.42904797,0.00013698,2]
[360833940,1747057842624,-7462.79429765,0.00013698,2]
[360833942,1747057842636,-5762.19083169,0.00013698,2]
[360833944,1747057842645,-7846.63160035,0.00013698,2]
[360833948,1747057842685,-1669.93705332,0.00013698,2]
[360833950,1747057842697,-262.77938161,0.00013698,2]
[360833952,1747057842709,-3266.17016788,0.00013698,2]
[360833954,1747057842720,-643.34,0.00013698,2]
[360833957,1747057842746,-10930.03179684,0.00013698,2]
[360833959,1747057842755,-400.0,0.00013698,2]
[360833961,1747057842766,-400.0,0.00013698,2]
[360833963,1747057842776,-400.0,0.00013698,2]
[360833965,1747057842786,-400.0,0.00013698,2]
[360833967,1747057842796,-400.0,0.00013698,2]
[360833968,1747057842805,-1634.56,0.00013698,2]
[360833970,1747057842815,-1634.56,0.00013698,2]
[360833972,1747057842825,-1634.56,0.00013698,2]
[360833974,1747057842834,-400.0,0.00013698,2]
[360833976,1747057842843,-400.0,0.00013698,2]
[360833978,1747057842852,-1222.04329198,0.00013698,2]
[360833982,1747057842891,-30.52286037,0.00013698,2]
[360833984,1747057842903,-475.07384765,0.00013698,2]
[360833985,1747057842912,-1727.64,0.00013698,2]
[360833986,1747057842922,-400.0,0.00013698,2]
[360833987,1747057842931,-545.53,0.00013698,2]
[360833988,1747057842940,-400.0,0.00013698,2]
[360833989,1747057842949,-400.0,0.00013698,2]
[360833990,1747057842958,-400.0,0.00013698,2]
[360833991,1747057842968,-400.0,0.00013698,2]
[360833992,1747057842977,-400.0,0.00013698,2]
[360833993,1747057842991,-400.0,0.00013698,2]
[360833994,1747057843001,-400.0,0.00013698,2]
[360833995,1747057843010,-400.0,0.00013698,2]
[360833996,1747057843020,-1139.99,0.00013698,2]
[360833997,1747057843029,-1139.99,0.00013698,2]
[360833998,1747057843043,-400.0,0.00013698,2]
[360833999,1747057843052,-1139.99,0.00013698,2]
[360834000,1747057843061,-490.5,0.00013698,2]
[360834001,1747057843070,-490.5,0.00013698,2]
[360834002,1747057843081,-287.89129563,0.00013698,2]
[360834003,1747057843092,-202.60870437,0.00013698,2]
[360834004,1747057843101,-400.0,0.00013698,2]
[360834005,1747057843111,-400.0,0.00013698,2]
[360834006,1747057843121,-400.0,0.00013698,2]
[360834007,1747057843131,-308.52,0.00013698,2]
[360834008,1747057843141,-400.0,0.00013698,2]
[360834009,1747057843150,-324.91713848,0.00013698,2]
[360834010,1747057843160,-7216.4397649,0.00013698,2]
[360834011,1747057843172,-631.44,0.00013698,2]
[360834012,1747057843183,-534.3999998,0.00013698,2]
[360834014,1747057843194,-485.305,0.00013698,2]
[360834016,1747057843204,-9469.55133971,0.00013698,2]
[360834020,1747057843225,-71084.12146668,0.00013698,2]
[360834022,1747057843241,-506.62630079,0.00013698,2]
[360834024,1747057843252,-352.72799642,0.00013698,2]
[360834026,1747057843263,-450.0,0.00013698,2]
[360834029,1747057843278,-431.899998,0.00013698,2]
[360834030,1747057843289,-2066.8021701,0.00013698,2]
[360834031,1747057843300,-2533.65043445,0.00013698,2]
[360834032,1747057843312,-2080.26552915,0.00013698,2]
[360834033,1747057843322,-822.77447113,0.00013698,2]
[360834034,1747057843333,-15271.10087165,0.00013698,2]
[360834035,1747057843344,-2513.09890421,0.00013698,2]
[360834038,1747057845539,-67934.28881896,0.00013698,2]
[360834039,1747057845551,-322.70443311,0.00013698,2]
[360834040,1747057845563,-10979.26250094,0.00013698,2]
[360834041,1747057845573,-31462.78639048,0.00013698,2]
[360834042,1747057845600,-467.96961399,0.00013698,2]
[360834043,1747057845611,-2429.25481791,0.00013698,2]
[360834044,1747057845662,-299.77777104,0.00013698,2]
[360834045,1747057845674,-1526.77504163,0.00013698,2]
[360834046,1747057845732,-1417.56443875,0.00013698,2]
[360834047,1747057845747,-5160.0,0.00013698,2]
[360834048,1747057845758,-14572.01377124,0.00013698,2]
[360834049,1747057845793,-5244.78030757,0.00013698,2]
[360834050,1747057845805,-35262.30784739,0.00013698,2]
[360834051,1747057845815,-400.0,0.00013698,2]
[360834052,1747057845824,-151.0,0.00013699,2]
[360834053,1747057845833,-2997.77,0.00013699,2]
[360834054,1747057845843,-200.0,0.00013699,2]
[360834055,1747057845852,-225.0,0.00013699,2]
[360834056,1747057845861,-500.0,0.00013699,2]
[360834057,1747057845871,-500.0,0.00013699,2]
[360834058,1747057845880,-500.0,0.00013699,2]
[360834059,1747057845890,-500.0,0.00013699,2]
[360834060,1747057845900,-500.0,0.00013699,2]
[360834061,1747057845910,-1076.66944807,0.00013716,2]
[360834062,1747057845919,-195.4995,0.00013738,2]
[360834063,1747057845928,-1076.66944807,0.0001376,2]
[360834064,1747057845938,-222.91309988,0.00013784,2]
[360834065,1747057845948,-1076.66944807,0.00013804,2]
[360834066,1747057845958,-223.21067099,0.0001383,2]
[360834067,1747057845967,-169.89000243,0.0001383,2]
[360834068,1747057845976,-1989.05184,0.0001383,2]
[360834069,1747057845988,-1076.66944807,0.00013847,2]
[360834070,1747057845998,-1913.66232794,0.00013863,2]
[360834071,1747057846008,-500.0,0.00013873,2]
[360834072,1747057846017,-500.0,0.00013873,2]
[360834073,1747057846026,-500.0,0.00013873,2]
[360834074,1747057846038,-500.0,0.00013873,2]
[360834075,1747057846047,-500.0,0.00013873,2]
[360834076,1747057846056,-500.0,0.00013873,2]
[360834077,1747057846066,-500.0,0.00013873,2]
[360834078,1747057846075,-163.29965799,0.00013873,2]
[360834079,1747057846085,-501.23644231,0.00013873,2]
[360834081,1747057846094,-500.0,0.00013873,2]
[360834083,1747057846103,-501.03314797,0.00013873,2]
[360834085,1747057846115,-500.0,0.00013873,2]
[360834086,1747057846125,-504.55607635,0.00013873,2]
[360834087,1747057846134,-501.67918646,0.00013873,2]
[360834088,1747057846143,-500.0,0.00013873,2]
[360834090,1747057846152,-502.64673842,0.00013873,2]
[360834091,1747057846161,-540.59924787,0.00013884,2]
[360834092,1747057846170,-400.0,0.00013892,2]
[360834093,1747057846180,-400.0,0.00013892,2]
[360834094,1747057846189,-400.0,0.00013892,2]
[360834095,1747057846198,-400.0,0.00013892,2]
[360834096,1747057846208,-400.0,0.00013892,2]
[360834097,1747057846217,-548.33,0.00013892,2]
[360834098,1747057846226,-400.0,0.00013892,2]
[360834099,1747057846237,-212.58461798,0.00013892,2]
[360834100,1747057846247,-402.34,0.00013892,2]
[360834101,1747057846256,-497.33633759,0.00013892,2]
[360834102,1747057846265,-300.0,0.00013892,2]
[360834103,1747057846274,-305.20290868,0.00013893,2]
[360834104,1747057846283,-400.0,0.00013893,2]
[360834105,1747057846292,-400.0,0.00013893,2]
[360834106,1747057846302,-400.0,0.00013893,2]
[360834107,1747057846311,-400.0,0.00013893,2]
[360834108,1747057846320,-400.0,0.00013893,2]
[360834109,1747057846328,-407.08,0.00013893,2]
[360834110,1747057846338,-400.0,0.00013893,2]
[360834111,1747057846346,-2608.73,0.00013893,2]
[360834112,1747057846355,-400.0,0.00013893,2]
[360834113,1747057846364,-900.19,0.00013893,2]
[360834114,1747057846373,-400.0,0.00013893,2]
[360834115,1747057846383,-400.0,0.00013893,2]
[360834116,1747057846393,-2248.18,0.00013893,2]
[360834117,1747057846402,-1219.05,0.00013893,2]
[360834118,1747057846411,-681.29,0.00013893,2]
[360834119,1747057846421,-400.0,0.00013893,2]
[360834120,1747057846431,-4457.19,0.00013893,2]
[360834121,1747057846440,-13127.26,0.00013893,2]
[360834122,1747057846450,-400.0,0.00013893,2]
[360834123,1747057846459,-1482.74,0.00013893,2]
[360834124,1747057846468,-3017.36,0.00013893,2]
[360834125,1747057846477,-807.7,0.00013893,2]
[360834126,1747057846488,-40613.17877514,0.00013893,2]
[360834127,1747057846589,-320.2207373,0.00013893,2]
[360834128,1747057846600,-536.91118955,0.00013893,2]
[360834129,1747057846611,-12920.0,0.00013893,2]
[360834130,1747057846624,-683.21054471,0.00013893,2]
[360834131,1747057846635,-2508.77207442,0.00013893,2]
[360834132,1747057846646,-1659.35691812,0.00013893,2]
[360834133,1747057869349,2123.958925,0.00028,120]
[360834134,1747057876736,2000.0,0.00028,120]
[360834135,1747057878546,20187.487654,0.000145,5]
[360834136,1747057882809,2000.0,0.00028,120]
[360834137,1747057888294,2000.0,0.000137,5]
[360834138,1747057890421,2600.0,0.000138,5]
[360834139,1747057892531,500.0,0.000139,5]
[360834156,1747058539012,163.8,0.00025,60]
[360834157,1747058604001,-300.0,0.0001247,2]
[360834158,1747058604034,-500.0,0.0001247,2]
[360834159,1747058604066,-500.0,0.0001247,2]
[360834160,1747058604098,-500.0,0.0001247,2]
[360834161,1747058604133,-500.0,0.0001247,2]
[360834162,1747058604165,-500.0,0.0001247,2]
[360834163,1747058604198,-500.0,0.0001247,2]
[360834164,1747058604230,-500.0,0.0001247,2]
[360834165,1747058604267,-500.0,0.0001247,2]
[360834166,1747058604299,-609.63187492,0.0001247,2]
[360834167,1747058604329,-1200.0,0.00012472,2]
[360834168,1747058604355,-300.0,0.00012472,2]
[360834169,1747058604390,-1000.0,0.00012679,2]
[360834170,1747058604418,-224.02,0.00012679,2]
[360834171,1747058604444,-330.38,0.00012768,2]
[360834172,1747058604470,-250.0,0.00012814,2]
[360834173,1747058604496,-314.05,0.0001282,2]
[360834174,1747058604520,-3224.54,0.00012853,2]
[360834175,1747058604545,-500.0,0.000134,4]
[360834176,1747058604569,-881.69272201,0.00013465,2]
[360834177,1747058604594,-1000.0,0.000135,4]
[360834178,1747058604628,-155.2116809,0.00013598,2]
[360834179,1747058604653,-156.71225626,0.00013598,2]
[360834180,1747058604679,-167.18482491,0.00013598,2]
[360834181,1747058604703,-1000.0,0.00013599,2]
[360834182,1747058604727,-165.66,0.000136,2]
[360834183,1747058604752,-1500.0,0.000136,4]
[360834184,1747058604778,-155.21168083,0.00013633,2]
[360834185,1747058604804,-155.21168083,0.00013669,2]
[360834186,1747058604828,-500.0,0.00013673,2]
[360834187,1747058604851,-500.0,0.00013673,2]
[360834188,1747058604880,-500.0,0.00013673,2]
[360834189,1747058604905,-500.83266963,0.00013673,2]
[360834190,1747058604928,-500.0,0.00013673,2]
[360834191,1747058604952,-500.0,0.00013673,2]
[360834192,1747058604975,-500.0,0.00013673,2]
[360834193,1747058604999,-191.88434438,0.00013673,2]
[360834194,1747058605023,-420.0,0.00013683,2]
[360834195,1747058605048,-262.0,0.00013685,2]
[360834196,1747058605072,-166.28,0.00013688,2]
[360834197,1747058605096,-166.28,0.00013688,2]
[360834198,1747058605124,-166.28,0.00013688,2]
[360834199,1747058605147,-166.28,0.00013688,2]
[360834200,1747058605171,-166.28,0.00013688,2]
[360834201,1747058605388,-156.587,0.0001369,2]
[360834202,1747058605413,-151.0,0.0001369,2]
[360834203,1747058605438,-668.65185757,0.0001369,2]
[360834204,1747058605462,-207.4,0.0001369,2]
[360834205,1747058605486,-3329.081,0.0001369,2]
[360834206,1747058605510,-157.676,0.0001369,2]
[360834207,1747058605534,-1364.42,0.00013698,2]
[360834208,1747058605557,-1364.42,0.00013698,2]
[360834209,1747058605581,-400.0,0.00013698,2]
[360834210,1747058605604,-400.0,0.00013698,2]
[360834211,1747058605632,-400.0,0.00013698,2]
[360834212,1747058605656,-400.0,0.00013698,2]
[360834213,1747058605682,-450.28,0.00013698,2]
[360834214,1747058605706,-450.28,0.00013698,2]
[360834215,1747058605730,-400.0,0.00013698,2]
[360834216,1747058605754,-400.0,0.00013698,2]
[360834217,1747058605779,-400.0,0.00013698,2]
[360834218,1747058605803,-501.11,0.00013698,2]
[360834219,1747058605827,-400.0,0.00013698,2]
[360834220,1747058605850,-501.11,0.00013698,2]
[360834221,1747058605879,-524.12,0.00013698,2]
[360834222,1747058605904,-524.12,0.00013698,2]
[360834223,1747058605932,-400.0,0.00013698,2]
[360834224,1747058605957,-400.0,0.00013698,2]
[360834225,1747058605983,-400.0,0.00013698,2]
[360834226,1747058606009,-400.0,0.00013698,2]
[360834227,1747058606033,-400.0,0.00013698,2]
[360834228,1747058606058,-400.0,0.00013698,2]
[360834229,1747058606082,-954.68,0.00013698,2]
[360834230,1747058606107,-400.0,0.00013698,2]
[360834231,1747058606133,-400.0,0.00013698,2]
[360834232,1747058606159,-400.0,0.00013698,2]
[360834233,1747058606183,-400.0,0.00013698,2]
[360834234,1747058606207,-400.0,0.00013698,2]
[360834235,1747058606247,-400.0,0.00013698,2]
[360834236,1747058606275,-400.0,0.00013698,2]
[360834237,1747058606303,-400.0,0.00013698,2]
[360834238,1747058606328,-400.0,0.00013698,2]
[360834239,1747058606355,-400.0,0.00013698,2]
[360834240,1747058606385,-400.0,0.00013698,2]
[360834241,1747058606410,-400.0,0.00013698,2]
[360834242,1747058606435,-400.0,0.00013698,2]
[360834243,1747058606461,-400.0,0.00013698,2]
[360834244,1747058606487,-400.0,0.00013698,2]
[360834245,1747058606513,-400.0,0.00013698,2]
[360834246,1747058606538,-400.0,0.00013698,2]
[360834247,1747058606562,-400.0,0.00013698,2]
[360834248,1747058606587,-400.0,0.00013698,2]
[360834249,1747058606616,-400.0,0.00013698,2]
[360834250,1747058606641,-400.0,0.00013698,2]
[360834251,1747058606668,-400.0,0.00013698,2]
[360834252,1747058606694,-400.0,0.00013698,2]
[360834253,1747058606723,-400.0,0.00013698,2]
[360834254,1747058606749,-400.0,0.00013698,2]
[360834255,1747058606775,-400.0,0.00013698,2]
[360834256,1747058606800,-400.0,0.00013698,2]
[360834257,1747058606824,-400.0,0.00013698,2]
[360834258,1747058606849,-400.0,0.00013698,2]
[360834259,1747058606877,-400.0,0.00013698,2]
[360834260,1747058606902,-639.73,0.00013698,2]
[360834261,1747058606929,-639.73,0.00013698,2]
[360834262,1747058606954,-400.0,0.00013698,2]
[360834263,1747058606980,-400.0,0.00013698,2]
[360834264,1747058607005,-400.0,0.00013698,2]
[360834265,1747058607034,-400.0,0.00013698,2]
[360834266,1747058607059,-1750.75,0.00013698,2]
[360834267,1747058607084,-1750.75,0.00013698,2]
[360834268,1747058607110,-397.65038516,0.00013698,2]
[360834269,1747058607136,-438.84159398,0.00013698,2]
[360834270,1747058607161,-400.0,0.00013698,2]
[360834271,1747058607186,-400.0,0.00013698,2]
[360834272,1747058607212,-2917.0,0.00013698,2]
[360834273,1747058607237,-2917.0,0.00013698,2]